Cogmind - Beta 16 @@@ ROGUE MODE // 2026.01.13 @ 18:44:03 Player: AngelSpirit Result: Destroyed by J9-L8P(R) with Subdweller Laser Performance ------------- Evolutions (0) 0 Regions Visited (2) 400 Robots Destroyed (39) 195 Value Destroyed (806) 806 Prototype IDs (0) 0 Alien Tech Used (0) 0 Bonus (-18) -18 TOTAL SCORE: 1383 Bonus ------- Friendly Fire -18 Cogmind --------- Core Integrity 0/250 Matter 295/300 Energy 91/125 System Corruption 0% Temperature Cool (51) Movement Rolling (131) Ox3 Location -10/Subcaves Parts ------- > --- POWER (1) -------- Light Ion Engine > --- PROPULSION (2) --- Wheel Subdweller Monowheel > --- UTILITY (2) ------ Huge Storage Unit > --- WEAPON (2) ------- Subdweller Laser Subdweller Laser > --- INVENTORY (25) --- Light Ion Engine Light Ion Engine Subdweller Power Source Wheel Wheel Wheel Subdweller Monowheel Subdweller Monowheel High-capacity Storage Unit Sensor Array Seismic Detector Light Armor Plating Light Armor Plating Light Armor Plating Light Armor Plating Light Armor Plating Scrap Shield Subdweller Machine Gun Subdweller Machine Gun Battle Cannon Grenade Launcher Shrapnel Trap Peak State ------------ > --- POWER ------------ Ion Engine > --- PROPULSION ------- Wheel Subdweller Monowheel > --- UTILITY ---------- Huge Storage Unit Light Armor Plating > --- WEAPON ----------- Subdweller Laser Subdweller Beam Cannon > --- INVENTORY -------- Light Ion Engine Light Ion Engine Light Ion Engine Subdweller Power Source Wheel Wheel Wheel Wheel Compact Wheel Subdweller Monowheel Subdweller Monowheel High-capacity Storage Unit Sensor Array Seismic Detector Light Armor Plating Light Armor Plating Light Armor Plating Light Armor Plating Light Armor Plating Light Armor Plating Light Armor Plating Subdweller Laser Subdweller Laser Battle Cannon Grenade Launcher [Rating: 13] Favorites ----------- Power Ion Engine Engine Ion Engine Propulsion Wheel Wheel Wheel Utility Huge Storage Unit Device Seismic Detector Storage Huge Storage Unit Protection Light Armor Plating Weapon Assault Rifle Energy Gun Subdweller Laser Energy Cannon Subdweller Beam Cannon Ballistic Gun Assault Rifle Slashing Weapon Mining Claw Build | -11 -10 -10 ------- Run | Yrd Mat Sub Slots Evolved . | . . . Power . | . . . Propulsion . | . . . Utility . | . . . Weapon . | . . . Parts Attached 29 | 8 8 13 Power 2 | 1 . 1 Engine 2 | 1 . 1 Core . | . . . Reactor . | . . . Propulsion 9 | 2 3 4 Treads . | . . . Leg . | . . . Wheel 9 | 2 3 4 Hover . | . . . Flight . | . . . Utility 10 | 2 4 4 Device 3 | 1 1 1 Storage 3 | 1 2 . Processor . | . . . Hackware . | . . . Protection 4 | . 1 3 Artifact . | . . . Weapon 8 | 3 1 4 Energy Gun 3 | . . 3 Energy Cannon 1 | . . 1 Ballistic Gun 3 | 3 . . Ballistic Cannon . | . . . Launcher . | . . . Special Weapon . | . . . Impact Weapon . | . . . Slashing Weapon 1 | . 1 . Piercing Weapon . | . . . Special Melee Weapon . | . . . Unidentified Prototypes . | . . . Parts Lost 5 | . 1 4 Power . | . . . Propulsion 2 | . 1 1 Utility 2 | . . 2 Weapon 1 | . . 1 Highest Loss Streak 2 | . 1 2 To Critical Strikes . | . . . Average Backups 15 | 1 11 22 Power 2 | . 1 3 Propulsion 3 | . 2 5 Utility 7 | . 6 9 Weapon 2 | . 1 3 Tool/Special . | . . . Unused Backups 18 | . 1 17 Power 2 | . . 2 Propulsion 5 | . . 5 Utility 6 | . . 6 Weapon 5 | . 1 4 Tool/Special . | . . . Average Slot Usage (%) 99 | . 99 99 Engine 14 | . 14 14 Wheel 27 | . 27 27 Device 10 | . 9 11 Storage 14 | . 14 14 Protection 3 | . 4 2 Energy Gun 7 | . . 16 Energy Cannon 3 | . . 7 Ballistic Gun 16 | . 27 3 Peak Build Rating 13 | 7 9 13 Average Rating 9 | 5 7 12 On Entrance 5 | . 7 9 Avg Prop Armor Cover (%) . | . . . Naked Turns . | . . . Heaviest Build 100 | 15 92 100 Greatest Support 30 | 26 26 30 Greatest Overweight (x) 4 | . 3 4 Average Overweight (x) 1 | . 1 3 Largest Inventory Capacity 25 | 8 25 25 Average Capacity 21 | 7 19 25 Most Carried 25 | 2 23 25 Average Carried 15 | 1 11 23 Final Capacity 25 | 8 25 25 Final Carried 23 | 2 23 23 Class Distribution -------------------- 100% | Mutant Dominant Class ---------------- Mutant | -10/Materials Mutant | -10/Subcaves Resources | -11 -10 -10 ----------- Run | Yrd Mat Sub Matter Collected 1156 | 357 594 205 Remotely . | . . . Salvage Created 1184 | 169 599 416 Parts 72 | 7 53 12 Haulers Intercepted 2 | . 2 . Recyclers Shooed . | . . . Parts Field Recycled . | . . . Retrieved Matter . | . . . Parts Self-Destructed . | . . . Prevented . | . . . Parts Restored . | . . . Kills | -11 -10 -10 ------- Run | Yrd Mat Sub Combat Hostiles Destroyed 25 | . 16 9 Guns 19 | . 16 3 Cannons 5 | . . 5 Classes Destroyed 9 | 2 7 . Worker 1 | . 1 . Tunneler 5 | 4 1 . Hauler 2 | . 2 . Recycler 1 | 1 . . Operator 2 | . 2 . Watcher 3 | . 3 . Swarmer 10 | . 10 . Grunt 5 | . 5 . Subdweller 10 | . 1 9 Best Kill Streak 5 | 5 3 2 Combat Bots Only 3 | . 3 2 Max Kills in Single Turn 1 | 1 1 1 Gunslinging . | . . . Exploded . | . . . Melee . | . . . Uniques/NPCs Destroyed . | . . . Combat | -11 -10 -10 -------- Run | Yrd Mat Sub Hostile Shots Fired 98 | . 50 48 Missed 23 | . 11 12 Hits 75 | . 39 36 Projectile 75 | . 39 36 Damage Taken 1130 | . 366 764 Core 271 | . 55 216 Absorbed by Shields . | . . . Regen/Repaired (Parts) 120 | . 120 . Core Remaining (%) 100 | 100 . . Volleys Fired 137 | 15 66 56 Largest 2 | 2 2 2 Hottest 140 | 40 40 140 Shots Fired 262 | 30 132 100 Gun 227 | 30 132 65 Cannon 35 | . . 35 Launcher . | . . . Special . | . . . Kinetic 162 | 30 132 . Thermal 100 | . . 100 Explosive . | . . . Electromagnetic . | . . . Robot Hit Streak 11 | 9 11 9 Robot Miss Streak 5 | 2 5 5 Penetration Max . | . . . Secondary Targets 2 | . 2 . Max Gunslinging Chain 1 | . 1 . Shots Hit Robots 157 | 20 82 55 Core Hits 54 | 6 35 13 Critical Kills 1 | . . 1 Critical Parts Destroyed 1 | . 1 . Critical Strikes 4 | . 1 3 Meltdown 1 | . . 1 Destroy 3 | . 1 2 Melee Attacks 1 | . 1 . Impact . | . . . Slashing 1 | . 1 . Piercing . | . . . Sneak Attacks . | . . . Combat Hostiles . | . . . Follow-up Attacks . | . . . Damage Inflicted 2586 | 246 1047 1293 Guns 2071 | 246 1047 778 Cannons 515 | . . 515 Explosions . | . . . Melee . | . . . Ramming . | . . . Kinetic 1293 | 246 1047 . Thermal 1293 | . . 1293 Explosive . | . . . Electromagnetic . | . . . Impact . | . . . Slashing . | . . . Piercing . | . . . Highest Corruption . | . . . Average Corruption . | . . . Corruption Purged . | . . . Corruption Blocked . | . . . Overload Shots . | . . . Overflow Damage . | . . . Projectiles . | . . . Explosions . | . . . Melee . | . . . Knockbacks . | . . . Impact . | . . . Kinetic . | . . . Secondary . | . . . Self-Inflicted Damage . | . . . Shots . | . . . Rammed . | . . . Targets Rammed . | . . . Kicked . | . . . Crushed . | . . . Highest Temperature 287 | . 4 287 Average Temperature 71 | . 2 76 Received Heat Transfer 126 | . 102 24 Effects 1 | . . 1 Energy Bleed 1 | . . 1 Siege Activations . | . . . Martial Activations . | . . . Shielding Activations . | . . . Robots Disrupted . | . . . Combat Hostiles . | . . . Robots Corrupted . | . . . Combat Hostiles . | . . . Parts Fried . | . . . Impact Corruptions . | . . . Robots Melted 1 | . . 1 Combat Hostiles 1 | . . 1 Parts Melted 2 | . . 2 Heat Transferred 1653 | . . 1653 Parts Sabotaged . | . . . Parts Stolen . | . . . Parts Stripped . | . . . Power Chain Reactions . | . . . Alert | -11 -10 -10 ------- Run | Yrd Mat Sub Maximum Alert Level . | . . . Low Security (%) 100 | 100 100 . Level 1 . | . . . Level 2 . | . . . Level 3 . | . . . Level 4 . | . . . Level 5 . | . . . High Security . | . . . Max Security . | . . . Peak Influence 192 | 15 192 . Initial . | . . . Average 81 | 2 87 . Influence Increases 564 | 25 539 . Destroy 0b10 Robot/C 300 | . 300 . Destroy 0b10 Robot/NC 70 | 25 45 . Destroy Leader 70 | . 70 . Successful Hack 47 | . 47 . Disable Machine 15 | . 15 . Destroy Structure 2 | . 2 . Lose Combat Pursuer 60 | . 60 . Influence Decreases 564 | 25 497 42 Entered New Map 21 | . . 21 Time Decay 533 | 25 487 21 Lost Part 10 | . 10 . Squads Dispatched 4 | . 4 . Investigation 1 | . 1 . Extermination . | . . . Reinforcement 3 | . 3 . Assault . | . . . Garrison . | . . . Intercept . | . . . Searches Triggered . | . . . Construction Impeded . | . . . Haulers Reinforced . | . . . Active Scanning Responses . | . . . Cargo Convoy Interrupts . | . . . Stealth | -11 -10 -10 --------- Run | Yrd Mat Sub Distress Signals 2 | . 2 . Communications Jammed . | . . . Distress Signals . | . . . Times Spotted 36 | . 26 10 Peak Tracking Total 5 | . 5 2 Tactical Retreats 5 | . 5 . Traps | -11 -10 -10 ------- Run | Yrd Mat Sub Traps Triggered . | . . . Indirectly . | . . . Trap Hack Attempts . | . . . Triggered . | . . . Disarmed . | . . . Reprogrammed . | . . . Reused 1 | . . 1 Traps Extracted . | . . . Installed 1 | . . 1 Triggered . | . . . Most Traps Carried 1 | . . 1 Machines | -11 -10 -10 ---------- Run | Yrd Mat Sub Machines Disabled 1 | . 1 . Max in Single Turn 1 | . 1 . Machines Repaired . | . . . Machines Dismantled . | . . . Machines Sabotaged . | . . . Overloaded Fab Kills . | . . . Hacking | -11 -10 -10 --------- Run | Yrd Mat Sub Machines Accessed 9 | . 9 . Terminals 7 | . 7 . Fabricators . | . . . Repair Stations 1 | . 1 . Recycling Units 1 | . 1 . Scanalyzers . | . . . Garrison Access . | . . . Total Hacks 27 | . 27 . Successful 15 | . 15 . Failed 12 | . 12 . Catastrophic 2 | . 2 . Database Lockouts . | . . . Manual 22 | . 22 . Terminals 25 | . 25 . Fabricators . | . . . Repair Stations 1 | . 1 . Recycling Units 1 | . 1 . Scanalyzers . | . . . Garrison Access . | . . . Terminal Hacks 3 | . 3 . Terminal Index 1 | . 1 . Locate Traps 1 | . 1 . Zone Layout 1 | . 1 . Fabricator Hacks . | . . . Repair Station Hacks . | . . . Recycling Unit Hacks 1 | . 1 . Retrieve Components 1 | . 1 . Scanalyzer . | . . . Garrison Access Hacks . | . . . Unauthorized Hacks 11 | . 11 . Terminals 10 | . 10 . Botnet 3 | . 3 . Operators 1 | . 1 . Skim 6 | . 6 . Fabricators . | . . . Repair Stations 1 | . 1 . Patch 1 | . 1 . Recycling Units . | . . . Scanalyzers . | . . . Garrison Access . | . . . Data Cores Recovered . | . . . Used . | . . . Hacking Detections 7 | . 7 . Full Trace Events . | . . . Feedback Events . | . . . Feedback Blocked . | . . . Robot Schematics Acquired . | . . . Robots Built . | . . . Authchips . | . . . Time . | . . . Total Robot Build Rating . | . . . Part Schematics Acquired . | . . . Parts Built . | . . . Authchips . | . . . Time . | . . . Total Part Build Rating . | . . . Part Studies Acquired . | . . . Parts Repaired . | . . . Time . | . . . Parts Recycled . | . . . Recycled Matter . | . . . Retrieved Matter . | . . . Retrieved Components 3 | . 3 . Parts Scanalyzed . | . . . Part Schematics Acquired . | . . . Parts Damaged . | . . . Bothacking | -11 -10 -10 ------------ Run | Yrd Mat Sub Used RIF Installer . | . . . Robots Hacked . | . . . Non-combat . | . . . Combat . | . . . Robot Hacks Applied . | . . . Relay Couplers Released . | . . . Fabnet Peak Effective % . | . . . Robots Rewired . | . . . Allies Hacked . | . . . Hacks Repelled . | . . . Allies | -11 -10 -10 -------- Run | Yrd Mat Sub Total Allies . | . . . Largest Group . | . . . Highest-Rated Group . | . . . Highest-Rated Ally . | . . . Total Orders . | . . . Ally Attacks . | . . . Total Damage . | . . . Kills . | . . . Allies Corrupted . | . . . Allies Melted . | . . . Intel | -11 -10 -10 ------- Run | Yrd Mat Sub Active Infowar (turns) 2025 | 32 1012 981 Sensors 981 | . . 981 Seismic 1044 | 32 1012 . Robot Analysis Total . | . . . Derelict Logs Recovered 1 | . . 1 Drone Launches . | . . . Drone Recoveries . | . . . Exploration | -11 -10 -10 ------------- Run | Yrd Mat Sub Turns Passed 2865 | 115 1519 1231 Spaces Moved 1598 | 56 901 641 Core 1 | 1 . . Treads . | . . . Legs . | . . . Wheels 1597 | 55 901 641 Hover . | . . . Flight . | . . . Fastest Speed 50 | 50 90 131 Average Speed 117 | 88 108 131 Slowest Speed 150 | 90 135 150 Overloaded Moves . | . . . Propulsion Burnouts . | . . . Robots Hopped . | . . . Potential Cave-ins . | . . . Cave-ins Triggered . | . . . Exploration Rate (%) 45 | 3 94 40 Regions Visited 2 Branch Regions 1 Pre-discovered Areas 1 | . . 1 Known Exits Taken 1 | . 1 . Unknown Exits Taken 1 | 1 . . Scrap Searched 7 | . . 7 Spaces Dug 7 | . . 7 Terrain Destroyed 7 | . . 7 Melee . | . . . Projectile 7 | . . 7 AOE . | . . . Terrain Rammed . | . . . Walls Destroyed . | . . . Machines Disabled . | . . . Actions | -11 -10 -10 --------- Run | Yrd Mat Sub Total 2310 | 87 1299 924 Wait 470 | 7 283 180 Move 1596 | 55 900 641 Hop . | . . . Pick Up 36 | 2 24 10 Fast Attach 9 | 7 . 2 Attach 7 | . 2 5 Detach 1 | . . 1 Swap 34 | 1 17 16 Drop 18 | . 6 12 Fire 137 | 15 66 56 Melee 1 | . 1 . Ram . | . . . Kick . | . . . Crush . | . . . Escape Stasis . | . . . Rewire . | . . . Trap 1 | . . 1 Miscellaneous . | . . . Route ------- -11/Scrapyard -10/Materials (discovered 6 exits: *Mat x3 / [*Min x2] / *Sub) -10/Subcaves (discovered 3 exits: *Mat x2 / [Scr]) History --------- Turn | Location | Event 15 | -11/Scrapyard | Discovered new exit (range 15) 116 | -11/Scrapyard | Entered Materials 126 | -10/Materials | Discovered new exit (range 15) 307 | -10/Materials | Build established: Mutant 425 | -10/Materials | Discovered new exit (range 12) 496 | -10/Materials | Discovered new exit (range 13) 655 | -10/Materials | Discovered new exit (range 16) 916 | -10/Materials | Derelicts attacked the area 1439 | -10/Materials | Identified exit to Materials 1439 | -10/Materials | Identified exit to Subcaves 1479 | -10/Materials | Learned 2 Storage zone layouts 1523 | -10/Materials | Learned location of 3 exits from Materials 1527 | -10/Materials | Learned location of 1 exit from Recycling 1536 | -10/Materials | Learned 2 Storage zone layouts 1552 | -10/Materials | Learned 2 Mines zone layouts 1580 | -10/Materials | Learned location of 1 exit from Storage 1635 | -10/Materials | Entered Subcaves 1636 | -10/Subcaves | Approached by a straggling Scientist 1636 | -10/Subcaves | Identified exit to Materials 1782 | -10/Subcaves | Disturbed a concealed Subdweller 1952 | -10/Subcaves | Learned location of Zion (-6) 1952 | -10/Subcaves | Met a Zionite searching for "candidates" 2205 | -10/Subcaves | Core integrity fell below 50% 2282 | -10/Subcaves | Core integrity fell below 20% 2294 | -10/Subcaves | Learned Materials emergency access door positions 2384 | -10/Subcaves | Shifting Twisted Machinery released Mak. Laser 2492 | -10/Subcaves | Discovered exit to Materials (range 10) 2549 | -10/Subcaves | Shifting Twisted Machinery released Sub. Optics 2790 | -10/Subcaves | Disturbed a concealed Subdweller 2866 | -10/Subcaves | Destroyed by J9-L8P(R) with Subdweller Laser Last Messages --------------- 02775_ Searching scrap... 02775_ Found Battle Rifle. 02775_ Found Shrapnel Trap. 02775_ Found 57 Matter. 02776_ Searching scrap... 02776_ Found Piercing Trap. 02776_ Found Riot Gun. 02776_ Found 57 Matter. 02779_ Acquired Piercing Trap. 02784_ Acquired Shrapnel Trap. 02790_ Dropped Piercing Trap. 02791_ Installed Piercing Trap. 02794_ I6-YSQ(R) triggered Piercing Trap. 02794_ Spikes shoot up from the floor. 02794_ I6-YSQ(R) suffers critical hit (Impale). 02795_ I6-YSQ(R) suffers critical hit (Destroy). 02801_ I6-YSQ(R) destroyed. IY-U14(c): "We're getting close, I can feel it." 02864_ Lgt. Armor Plating destroyed. Map ----- +----------------------------------------------------+ | ?????????????????????????????????????????????????? | | ?????????????????????????????????????????????????? | | ?????????????????????????????????????????????????? | | ?????????????????????????????????????????????????? | | ?????????????????????????????????????????????????? | | ?????????????????????????????????????????????????? | | ?????????????????????????????????????????????????? | | ?????????????????????????????????????????????????? | | ?????????????????????????????????????????????????? | | ?????????????????????????????????????????????????? | | ???????????????????????????????#?????????????????? | | ?????????????????????????????? #?????????????????? | | ????????????????????????????? ????????????????#?" | | ???????????????????????????? ???????????????? "" | | ???????????????????????????? ?????????##???????"" | | ???????????????????????????? #????????## #??????# | | ????????????????>?????????? ???????? """"##"#### | | ??????????????????????????? #?????????"""" """? | | ??????????????????????????# #???#?????? ! ""#### | | ???????????????????????### #?? ???????? ""##"# # | | ???????????###?????????# ?# #?????????#"""""" | | ???????????# ##????????#RR#?# #?????????# "" ] | | ??????????## ###??????# #? #??## #???# # "## | | ??????????# ##?????# ## ?????# ###? | | ????####### #?????# #????????????# "#??? | | ????#"&&##" #????## @ ##???????????## "#??? | | ????#%# !%& ##????# ### #??????# ""#??? | | ????#[##"#" ###?????# #????????## " #??? | | ????#[ ### ######??# ## #????????# "##??? | | ????#"%## ## #### ##?# ##???????### #???? | | ????####### ## #???##????????# " #???? | | ??????????## ### ##????????????# ##??? | | ???????????## #### ##??????????## #??? | | ????????????## #?# #???????#### #??? | | ?????????????### ### #???????# #??? | | ???????????????## ## ##??????## ##??? | | ????????????????# ###??????## ## ##???? | | ????????????????## #???????## # #????? | | ?????????????????# ####???## #????? | | ?????????????????# ### ##### # #???? | | ???????????# ## ## ## ##### ^^#??? | | ??????????# ## ## #???# ^ #?? | | ??????????## ## #???# ^#?? | | ???????????# ## # ##?? #?? | | ???????????## ?# #?? ^#?? | | ????????????## #? ####?? | | ?????????????# ## ##### # ##????? | | ?????????????# ### #???## # ??????? | | ????????????# ####?# #????## ??????? | | ????????????## #?????# #?????## ?????? | +----------------------------------------------------+ Best States ------------- Heat Dissipation 25 Energy Generation 10 Energy Capacity 250 Matter Stores 300 Matter Capacity 300 Sight Range 16 Robot Scan Range 14 Terrain Scan Density 10 Armor Coverage 150 Evasion (%) 44 Item Schematics ----------------- None Robot Schematics ------------------ None Fabricated ------------ Nothing Repaired ---------- Nothing Studied --------- None Alien Tech Used ----------------- None Achievements -------------- None Challenges ------------ None Game ------ Seed MolecularBiocellClaw Manual? 0 Play Time 00:19:21 Cumulative 429.4 hours Start 2026.01.13 @ 18:25:24 End 2026.01.13 @ 18:44:03 Sessions 1 Manual Loads 0 Difficulty Rogue Special Mode None Game No. 150 Rogue 150 Adventurer 0 Explorer 0 Win Type - Total 10 Types 5/0/1/1/0/0/0/1/0/2 Lore% 86 Gallery% 81 Achievement% 72 Wizard Run 0 Options --------- Layout 1 ASCII 0 Keyboard 0 Movement Mouse Keybinds 0 Fullscreen 2 Font 32/SmallcapsGlow Map View 50x35 Zoom Use 0% Tactical HUD 1 Map Filters NONE Filters NONE Steam 1 RUN: 467dfd0c-3fc4-4e76-9614-3dbdeb3f5ed6